[Event "Titled Tuesday Blitz July 20 2021"]
[White "Mazi, Leon"]
[Black "Zierk, Steven"]
[WhiteFideId "14600315"]
[BlackFideId "2034255"]
[WhiteElo "2333"]
[BlackElo "2494"]
[Result "0-1"]
[Round "03"]
[TimeControl "180+1"]
[Date "2021.07.21"]
[WhiteClock "0:00:12"]
[BlackClock "0:00:17"]

1. e4 {[%clk 0:02:59]}  e6 {[%clk 0:02:59]} 2. d4 {[%clk 0:02:58]}  d5 {[%clk 0:02:59]} 3. Nd2 {[%clk 0:02:58]}  c5 {[%clk 0:02:59]} 4. exd5 {[%clk 0:02:58]}  Qxd5 {[%clk 0:03:00]} 5. Ngf3 {[%clk 0:02:58]}  cxd4 {[%clk 0:03:00]} 6. Bc4 {[%clk 0:02:57]}  Qd7 {[%clk 0:03:00]} 7. O-O {[%clk 0:02:56]}  Nc6 {[%clk 0:03:00]} 8. Nb3 {[%clk 0:02:55]}  Nf6 {[%clk 0:03:01]} 9. Nbxd4 {[%clk 0:02:52]}  Nxd4 {[%clk 0:03:02]} 10. Nxd4 {[%clk 0:02:51]}  a6 {[%clk 0:03:02]} 11. Re1 {[%clk 0:02:49]}  Bc5 {[%clk 0:02:57]} 12. Be3 {[%clk 0:02:35]}  O-O {[%clk 0:02:57]} 13. c3 {[%clk 0:02:12]}  Qc7 {[%clk 0:02:44]} 14. Bb3 {[%clk 0:01:53]}  b6 {[%clk 0:02:37]} 15. Qf3 {[%clk 0:01:51]}  Bb7 {[%clk 0:02:34]} 16. Qh3 {[%clk 0:01:51]}  Be4 {[%clk 0:02:19]} 17. Bg5 {[%clk 0:01:44]}  Bg6 {[%clk 0:02:13]} 18. Qh4 {[%clk 0:01:30]}  Bxd4 {[%clk 0:01:34]} 19. Qxd4 {[%clk 0:01:28]}  Nd7 {[%clk 0:01:30]} 20. Be7 {[%clk 0:01:12]}  Rfe8 {[%clk 0:01:28]} 21. Bd6 {[%clk 0:01:11]}  Qc6 {[%clk 0:01:27]} 22. Ba4 {[%clk 0:01:03]}  b5 {[%clk 0:01:26]} 23. Bb3 {[%clk 0:01:03]}  Rad8 {[%clk 0:01:21]} 24. Rad1 {[%clk 0:01:00]}  a5 {[%clk 0:01:11]} 25. a4 {[%clk 0:00:55]}  Nb6 {[%clk 0:01:09]} 26. Qc5 {[%clk 0:00:44]}  Qxc5 {[%clk 0:01:04]} 27. Bxc5 {[%clk 0:00:44]}  Nxa4 {[%clk 0:01:03]} 28. Bxa4 {[%clk 0:00:41]}  bxa4 {[%clk 0:01:04]} 29. f3 {[%clk 0:00:36]}  Rb8 {[%clk 0:00:59]} 30. Ba3 {[%clk 0:00:36]}  Red8 {[%clk 0:00:55]} 31. Kf2 {[%clk 0:00:35]}  Bc2 {[%clk 0:00:55]} 32. Rxd8+ {[%clk 0:00:34]}  Rxd8 {[%clk 0:00:56]} 33. Re5 {[%clk 0:00:33]}  Rd2+ {[%clk 0:00:50]} 34. Kg1 {[%clk 0:00:30]}  Bb3 {[%clk 0:00:44]} 35. Rxa5 {[%clk 0:00:30]}  f6 {[%clk 0:00:44]} 36. Ra7 {[%clk 0:00:28]}  e5 {[%clk 0:00:41]} 37. h4 {[%clk 0:00:28]}  h5 {[%clk 0:00:40]} 38. Kh2 {[%clk 0:00:23]}  Bc4 {[%clk 0:00:30]} 39. Kg1 {[%clk 0:00:21]}  Bb3 {[%clk 0:00:27]} 40. Kh2 {[%clk 0:00:21]}  Re2 {[%clk 0:00:21]} 41. Kg3 {[%clk 0:00:19]}  e4 {[%clk 0:00:20]} 42. fxe4 {[%clk 0:00:19]}  Rxe4 {[%clk 0:00:21]} 43. Bb4 {[%clk 0:00:16]}  Rg4+ {[%clk 0:00:20]} 44. Kh3 {[%clk 0:00:16]}  Bd5 {[%clk 0:00:20]} 45. g3 {[%clk 0:00:16]}  Bb3 {[%clk 0:00:20]} 46. Kg2 {[%clk 0:00:16]}  Re4 {[%clk 0:00:20]} 47. Kf3 {[%clk 0:00:16]}  Bd5 {[%clk 0:00:20]} 48. Kf2 {[%clk 0:00:15]}  Bc6 {[%clk 0:00:20]} 49. Rc7 {[%clk 0:00:15]}  Re6 {[%clk 0:00:20]} 50. Rc8+ {[%clk 0:00:15]}  Kh7 {[%clk 0:00:20]} 51. Rc7 {[%clk 0:00:16]}  Bb5 {[%clk 0:00:18]} 52. Bf8 {[%clk 0:00:15]}  Re2+ {[%clk 0:00:18]} 53. Kf3 {[%clk 0:00:16]}  Rxb2 {[%clk 0:00:18]} 54. Bxg7 {[%clk 0:00:16]}  Kg6 {[%clk 0:00:18]} 55. Bh8 {[%clk 0:00:15]}  a3 {[%clk 0:00:18]} 56. Ra7 {[%clk 0:00:15]}  a2 {[%clk 0:00:18]} 57. Rg7+ {[%clk 0:00:15]}  Kf5 {[%clk 0:00:18]} 58. Ra7 {[%clk 0:00:15]}  Bc4 {[%clk 0:00:18]} 59. Bg7 {[%clk 0:00:15]}  Rb3 {[%clk 0:00:17]} 60. Ke3 {[%clk 0:00:14]}  Rxc3+ {[%clk 0:00:17]} 61. Kd4 {[%clk 0:00:14]}  Rc1 {[%clk 0:00:18]} 62. Ra5+ {[%clk 0:00:13]}  Kg6 {[%clk 0:00:18]} 63. Bxf6 {[%clk 0:00:13]}  Kxf6 {[%clk 0:00:17]} 64. Ra3 {[%clk 0:00:12]}  a1=Q+ {[%clk 0:00:17]} 0-1


[Site "https://www.chess.com"]

[Event "Titled Tuesday Blitz July 20 2021"]
[White "Molina, Roberto Junio Brito"]
[Black "Vlassov, Nikolai"]
[WhiteFideId "2109450"]
[BlackFideId "4103360"]
[WhiteElo "2402"]
[BlackElo "2407"]
[Result "1-0"]
[Round "03"]
[TimeControl "180+1"]
[Date "2021.07.20"]
[WhiteClock "0:00:20"]
[BlackClock "0:00:13"]

1. d4 {[%clk 0:03:00]}  Nf6 {[%clk 0:02:59]} 2. c4 {[%clk 0:03:01]}  Nc6 {[%clk 0:02:59]} 3. Nf3 {[%clk 0:02:58]}  e6 {[%clk 0:02:59]} 4. Nc3 {[%clk 0:02:57]}  Bb4 {[%clk 0:02:59]} 5. Qc2 {[%clk 0:02:57]}  d6 {[%clk 0:02:59]} 6. a3 {[%clk 0:02:57]}  Bxc3+ {[%clk 0:02:59]} 7. Qxc3 {[%clk 0:02:58]}  Qe7 {[%clk 0:02:57]} 8. g3 {[%clk 0:02:57]}  e5 {[%clk 0:02:57]} 9. d5 {[%clk 0:02:54]}  Nb8 {[%clk 0:02:54]} 10. Bg2 {[%clk 0:02:53]}  O-O {[%clk 0:02:52]} 11. O-O {[%clk 0:02:53]}  a5 {[%clk 0:02:51]} 12. b4 {[%clk 0:02:50]}  axb4 {[%clk 0:02:49]} 13. axb4 {[%clk 0:02:51]}  Rxa1 {[%clk 0:02:49]} 14. Qxa1 {[%clk 0:02:52]}  Na6 {[%clk 0:02:48]} 15. Qc3 {[%clk 0:02:49]}  c6 {[%clk 0:02:39]} 16. dxc6 {[%clk 0:02:46]}  bxc6 {[%clk 0:02:39]} 17. Ba3 {[%clk 0:02:42]}  Ne4 {[%clk 0:02:28]} 18. Qc2 {[%clk 0:02:36]}  f5 {[%clk 0:02:26]} 19. Nd2 {[%clk 0:02:34]}  d5 {[%clk 0:02:18]} 20. cxd5 {[%clk 0:02:30]}  cxd5 {[%clk 0:02:17]} 21. Nxe4 {[%clk 0:02:27]}  fxe4 {[%clk 0:02:17]} 22. Qb2 {[%clk 0:02:24]}  Bg4 {[%clk 0:01:28]} 23. b5 {[%clk 0:02:22]}  Nc5 {[%clk 0:01:27]} 24. Rc1 {[%clk 0:02:10]}  Rc8 {[%clk 0:01:13]} 25. h3 {[%clk 0:02:10]}  Bd7 {[%clk 0:00:52]} 26. b6 {[%clk 0:02:07]}  Na4 {[%clk 0:00:42]} 27. b7 {[%clk 0:01:38]}  Rb8 {[%clk 0:00:17]} 28. Bxe7 {[%clk 0:00:20]}  Nxb2 {[%clk 0:00:16]} 29. Rc7 {[%clk 0:00:21]}  Be6 {[%clk 0:00:14]} 30. f3 {[%clk 0:00:20]}  exf3 {[%clk 0:00:14]} 31. Bxf3 {[%clk 0:00:19]}  e4 {[%clk 0:00:14]} 32. Bg4 {[%clk 0:00:19]}  Bxg4 {[%clk 0:00:09]} 33. hxg4 {[%clk 0:00:20]}  Kf7 {[%clk 0:00:10]} 34. Ba3+ {[%clk 0:00:19]}  Ke6 {[%clk 0:00:10]} 35. Bxb2 {[%clk 0:00:19]}  Kd6 {[%clk 0:00:11]} 36. Rxg7 {[%clk 0:00:19]}  Kc6 {[%clk 0:00:11]} 37. Bd4 {[%clk 0:00:19]}  Rxb7 {[%clk 0:00:12]} 38. Rxb7 {[%clk 0:00:19]}  Kxb7 {[%clk 0:00:13]} 39. Kf2 {[%clk 0:00:19]}  Kc6 {[%clk 0:00:13]} 40. Ke3 {[%clk 0:00:20]} 1-0


[Site "https://www.chess.com"]

[Event "Titled Tuesday Blitz July 20 2021"]
[White "Mortazavi, Ali"]
[Black "Har-Zvi, Ronen"]
[WhiteFideId "401323"]
[BlackFideId "2801485"]
[WhiteElo "2339"]
[BlackElo "2523"]
[Result "1/2-1/2"]
[Round "03"]
[TimeControl "180+1"]
[Date "2021.07.20"]
[WhiteClock "0:00:04"]
[BlackClock "0:00:06"]

1. e4 {[%clk 0:03:00]}  c6 {[%clk 0:02:59]} 2. Nc3 {[%clk 0:02:55]}  d5 {[%clk 0:02:59]} 3. d4 {[%clk 0:02:55]}  dxe4 {[%clk 0:02:56]} 4. f3 {[%clk 0:02:56]}  e3 {[%clk 0:02:56]} 5. Bxe3 {[%clk 0:02:55]}  Nf6 {[%clk 0:02:57]} 6. Bc4 {[%clk 0:02:54]}  Nbd7 {[%clk 0:02:53]} 7. Nge2 {[%clk 0:02:49]}  Nb6 {[%clk 0:02:54]} 8. Bb3 {[%clk 0:02:49]}  a5 {[%clk 0:02:54]} 9. a3 {[%clk 0:02:47]}  e6 {[%clk 0:02:53]} 10. O-O {[%clk 0:02:46]}  Be7 {[%clk 0:02:53]} 11. Qe1 {[%clk 0:02:44]}  O-O {[%clk 0:02:51]} 12. Qg3 {[%clk 0:02:39]}  Nbd5 {[%clk 0:02:50]} 13. Bd2 {[%clk 0:02:32]}  b5 {[%clk 0:02:43]} 14. Ne4 {[%clk 0:02:30]}  Ba6 {[%clk 0:02:29]} 15. Rf2 {[%clk 0:02:15]}  b4 {[%clk 0:02:27]} 16. Nc5 {[%clk 0:01:55]}  Bxc5 {[%clk 0:02:24]} 17. dxc5 {[%clk 0:01:55]}  a4 {[%clk 0:01:40]} 18. Bxd5 {[%clk 0:01:39]}  Nxd5 {[%clk 0:01:35]} 19. axb4 {[%clk 0:01:32]}  Qf6 {[%clk 0:01:33]} 20. c3 {[%clk 0:01:29]}  Bxe2 {[%clk 0:01:16]} 21. Rxe2 {[%clk 0:01:28]}  a3 {[%clk 0:01:16]} 22. bxa3 {[%clk 0:01:13]}  Nxc3 {[%clk 0:01:13]} 23. Bxc3 {[%clk 0:01:13]}  Qxc3 {[%clk 0:01:14]} 24. Qe5 {[%clk 0:01:13]}  Rxa3 {[%clk 0:01:09]} 25. Qxc3 {[%clk 0:00:59]}  Rxc3 {[%clk 0:01:09]} 26. Ra6 {[%clk 0:00:58]}  Rb3 {[%clk 0:01:01]} 27. Re4 {[%clk 0:00:57]}  Rc8 {[%clk 0:00:53]} 28. h4 {[%clk 0:00:57]}  h5 {[%clk 0:00:50]} 29. Kh2 {[%clk 0:00:57]}  Rb2 {[%clk 0:00:40]} 30. Kh3 {[%clk 0:00:50]}  Rb8 {[%clk 0:00:31]} 31. Rxc6 {[%clk 0:00:48]}  R2xb4 {[%clk 0:00:30]} 32. Rxb4 {[%clk 0:00:30]}  Rxb4 {[%clk 0:00:29]} 33. Kg3 {[%clk 0:00:29]}  Rc4 {[%clk 0:00:29]} 34. Rc7 {[%clk 0:00:27]}  g6 {[%clk 0:00:28]} 35. c6 {[%clk 0:00:25]}  Kg7 {[%clk 0:00:28]} 36. Rc8 {[%clk 0:00:19]}  Kf6 {[%clk 0:00:26]} 37. Kh3 {[%clk 0:00:19]}  Rc3 {[%clk 0:00:25]} 38. Kg3 {[%clk 0:00:19]}  Rc4 {[%clk 0:00:26]} 39. Kh3 {[%clk 0:00:19]}  Ke7 {[%clk 0:00:26]} 40. Kg3 {[%clk 0:00:19]}  Kd6 {[%clk 0:00:25]} 41. Rf8 {[%clk 0:00:16]}  f5 {[%clk 0:00:16]} 42. Rf6 {[%clk 0:00:16]}  Rxc6 {[%clk 0:00:15]} 43. Rxg6 {[%clk 0:00:17]}  Ke5 {[%clk 0:00:15]} 44. Rg5 {[%clk 0:00:16]}  Kf6 {[%clk 0:00:12]} 45. Rxh5 {[%clk 0:00:16]}  Rc8 {[%clk 0:00:10]} 46. Rh6+ {[%clk 0:00:14]}  Ke5 {[%clk 0:00:11]} 47. Rh5 {[%clk 0:00:13]}  Rg8+ {[%clk 0:00:10]} 48. Rg5 {[%clk 0:00:13]}  Rh8 {[%clk 0:00:06]} 49. h5 {[%clk 0:00:13]}  Kf6 {[%clk 0:00:06]} 50. Rg6+ {[%clk 0:00:12]}  Kf7 {[%clk 0:00:07]} 51. Kh4 {[%clk 0:00:12]}  e5 {[%clk 0:00:07]} 52. Ra6 {[%clk 0:00:11]}  e4 {[%clk 0:00:07]} 53. fxe4 {[%clk 0:00:08]}  fxe4 {[%clk 0:00:08]} 54. g4 {[%clk 0:00:08]}  e3 {[%clk 0:00:08]} 55. Ra1 {[%clk 0:00:05]}  Kf6 {[%clk 0:00:08]} 56. Re1 {[%clk 0:00:05]}  Re8 {[%clk 0:00:07]} 57. g5+ {[%clk 0:00:06]}  Kf5 {[%clk 0:00:08]} 58. Rf1+ {[%clk 0:00:03]}  Ke4 {[%clk 0:00:07]} 59. h6 {[%clk 0:00:04]}  e2 {[%clk 0:00:06]} 60. Re1 {[%clk 0:00:04]}  Kf5 {[%clk 0:00:07]} 61. Kh5 {[%clk 0:00:04]}  Re3 {[%clk 0:00:07]} 62. Kh4 {[%clk 0:00:02]}  Re4+ {[%clk 0:00:07]} 63. Kh5 {[%clk 0:00:03]}  Re3 {[%clk 0:00:05]} 64. Kh4 {[%clk 0:00:03]}  Re4+ {[%clk 0:00:06]} 65. Kh5 {[%clk 0:00:04]}  Re3 {[%clk 0:00:06]} 1/2-1/2


[Site "https://www.chess.com"]

[Event "Titled Tuesday Blitz July 20 2021"]
[White "Nefedov, Sergey"]
[Black "Grabinsky, Aaron"]
[WhiteFideId "24113417"]
[BlackFideId "2087090"]
[WhiteElo "2385"]
[BlackElo "2353"]
[Result "0-1"]
[Round "03"]
[TimeControl "180+1"]
[Date "2021.07.20"]
[WhiteClock "0:00:10"]
[BlackClock "0:00:53"]

1. d4 {[%clk 0:03:00]}  e6 {[%clk 0:02:59]} 2. Nf3 {[%clk 0:03:00]}  Nf6 {[%clk 0:02:59]} 3. c4 {[%clk 0:02:55]}  Bb4+ {[%clk 0:02:59]} 4. Bd2 {[%clk 0:02:54]}  Qe7 {[%clk 0:02:59]} 5. g3 {[%clk 0:02:49]}  Nc6 {[%clk 0:02:59]} 6. Bg2 {[%clk 0:02:48]}  Bxd2+ {[%clk 0:02:59]} 7. Nbxd2 {[%clk 0:02:48]}  d6 {[%clk 0:02:59]} 8. O-O {[%clk 0:02:46]}  e5 {[%clk 0:03:00]} 9. e3 {[%clk 0:02:41]}  O-O {[%clk 0:02:59]} 10. Qc2 {[%clk 0:02:38]}  Bg4 {[%clk 0:02:58]} 11. h3 {[%clk 0:02:36]}  Bh5 {[%clk 0:02:58]} 12. d5 {[%clk 0:02:32]}  Nb8 {[%clk 0:02:55]} 13. Nh4 {[%clk 0:02:31]}  a5 {[%clk 0:02:47]} 14. Nf5 {[%clk 0:02:28]}  Qd7 {[%clk 0:02:47]} 15. g4 {[%clk 0:02:25]}  Bg6 {[%clk 0:02:47]} 16. e4 {[%clk 0:02:26]}  Na6 {[%clk 0:02:44]} 17. Nf3 {[%clk 0:02:21]}  Nc5 {[%clk 0:02:42]} 18. Nd2 {[%clk 0:01:59]}  Rfe8 {[%clk 0:02:31]} 19. Rfe1 {[%clk 0:01:47]}  b5 {[%clk 0:02:23]} 20. b3 {[%clk 0:01:35]}  b4 {[%clk 0:02:21]} 21. Re3 {[%clk 0:01:23]}  h6 {[%clk 0:02:18]} 22. Rb1 {[%clk 0:01:18]}  Nh7 {[%clk 0:02:12]} 23. h4 {[%clk 0:01:16]}  Nf8 {[%clk 0:02:09]} 24. Nf1 {[%clk 0:01:09]}  Bh7 {[%clk 0:02:07]} 25. N1g3 {[%clk 0:01:04]}  Qd8 {[%clk 0:01:44]} 26. Qd2 {[%clk 0:00:57]}  Bxf5 {[%clk 0:01:42]} 27. Nxf5 {[%clk 0:00:57]}  Ng6 {[%clk 0:01:42]} 28. Rg3 {[%clk 0:00:43]}  Nxh4 {[%clk 0:01:25]} 29. g5 {[%clk 0:00:43]}  hxg5 {[%clk 0:01:21]} 30. Rxg5 {[%clk 0:00:37]}  Nxf5 {[%clk 0:01:18]} 31. exf5 {[%clk 0:00:35]}  Qf6 {[%clk 0:01:16]} 32. Qe3 {[%clk 0:00:25]}  Kf8 {[%clk 0:01:13]} 33. Bf3 {[%clk 0:00:12]}  Ke7 {[%clk 0:01:11]} 34. Kf1 {[%clk 0:00:13]}  Rh8 {[%clk 0:01:09]} 35. Ke2 {[%clk 0:00:13]}  a4 {[%clk 0:01:00]} 36. a3 {[%clk 0:00:13]}  Nxb3 {[%clk 0:00:56]} 37. axb4 {[%clk 0:00:12]}  Nd4+ {[%clk 0:00:57]} 38. Kd3 {[%clk 0:00:10]}  Nxf3 {[%clk 0:00:56]} 39. Rg3 {[%clk 0:00:10]}  Nd4 {[%clk 0:00:53]} 0-1


[Site "https://www.chess.com"]

[Event "Titled Tuesday Blitz July 20 2021"]
[White "Nguyen Hong Nhung"]
[Black "Kim, Yoon-Young"]
[WhiteFideId "12412201"]
[BlackFideId "30908779"]
[WhiteElo "1661"]
[BlackElo "2109"]
[Result "0-1"]
[Round "03"]
[TimeControl "180+1"]
[Date "2021.07.21"]
[WhiteClock "0:00:18"]
[BlackClock "0:00:28"]

1. e4 {[%clk 0:03:00]}  e5 {[%clk 0:02:59]} 2. Nf3 {[%clk 0:03:00]}  Nc6 {[%clk 0:02:58]} 3. d4 {[%clk 0:03:01]}  exd4 {[%clk 0:02:58]} 4. Nxd4 {[%clk 0:03:02]}  Nf6 {[%clk 0:02:58]} 5. Nc3 {[%clk 0:03:02]}  Bb4 {[%clk 0:02:51]} 6. Nxc6 {[%clk 0:03:02]}  bxc6 {[%clk 0:02:51]} 7. Bd3 {[%clk 0:03:02]}  d5 {[%clk 0:02:52]} 8. exd5 {[%clk 0:03:03]}  O-O {[%clk 0:02:52]} 9. O-O {[%clk 0:03:03]}  cxd5 {[%clk 0:02:52]} 10. h3 {[%clk 0:03:03]}  c6 {[%clk 0:02:51]} 11. Qf3 {[%clk 0:03:04]}  Re8 {[%clk 0:02:44]} 12. Ne2 {[%clk 0:03:03]}  Be6 {[%clk 0:02:40]} 13. b3 {[%clk 0:03:03]}  a5 {[%clk 0:02:24]} 14. Bb2 {[%clk 0:02:57]}  Be7 {[%clk 0:02:19]} 15. Nd4 {[%clk 0:02:47]}  Bd7 {[%clk 0:02:12]} 16. Rfe1 {[%clk 0:02:38]}  a4 {[%clk 0:02:09]} 17. Nf5 {[%clk 0:02:37]}  Bxf5 {[%clk 0:02:02]} 18. Qxf5 {[%clk 0:02:38]}  Qd7 {[%clk 0:01:52]} 19. Qg5 {[%clk 0:02:02]}  h6 {[%clk 0:01:44]} 20. Qg3 {[%clk 0:02:00]}  Nh5 {[%clk 0:01:37]} 21. Qe5 {[%clk 0:01:52]}  Bb4 {[%clk 0:01:21]} 22. Qxh5 {[%clk 0:01:41]}  Bxe1 {[%clk 0:01:18]} 23. Qh4 {[%clk 0:01:09]}  a3 {[%clk 0:01:06]} 24. Bd4 {[%clk 0:01:05]}  Qe7 {[%clk 0:00:59]} 25. Qg4 {[%clk 0:00:48]}  Qg5 {[%clk 0:00:52]} 26. Qd7 {[%clk 0:00:48]}  c5 {[%clk 0:00:34]} 27. Bxc5 {[%clk 0:00:34]}  Bc3 {[%clk 0:00:34]} 28. Rd1 {[%clk 0:00:29]}  d4 {[%clk 0:00:27]} 29. Bb6 {[%clk 0:00:18]}  Re6 {[%clk 0:00:25]} 30. Qb7 {[%clk 0:00:17]}  Rae8 {[%clk 0:00:23]} 31. Bc4 {[%clk 0:00:16]}  Re1+ {[%clk 0:00:23]} 32. Rxe1 {[%clk 0:00:17]}  Rxe1+ {[%clk 0:00:23]} 33. Kh2 {[%clk 0:00:17]}  Qf4+ {[%clk 0:00:22]} 34. g3 {[%clk 0:00:17]}  Qxf2+ {[%clk 0:00:23]} 35. Qg2 {[%clk 0:00:18]}  Qxg2+ {[%clk 0:00:22]} 36. Kxg2 {[%clk 0:00:18]}  Ra1 {[%clk 0:00:22]} 37. b4 {[%clk 0:00:17]}  Rb1 {[%clk 0:00:18]} 38. Bb3 {[%clk 0:00:17]}  d3 {[%clk 0:00:19]} 39. Be3 {[%clk 0:00:15]}  d2 {[%clk 0:00:18]} 40. Bxd2 {[%clk 0:00:16]}  Bxd2 {[%clk 0:00:19]} 41. b5 {[%clk 0:00:17]}  Ba5 {[%clk 0:00:20]} 42. Kf3 {[%clk 0:00:17]}  Re1 {[%clk 0:00:19]} 43. Kf2 {[%clk 0:00:17]}  Re5 {[%clk 0:00:19]} 44. c4 {[%clk 0:00:17]}  Kf8 {[%clk 0:00:20]} 45. Kf3 {[%clk 0:00:16]}  f6 {[%clk 0:00:21]} 46. Kf4 {[%clk 0:00:16]}  Ke7 {[%clk 0:00:21]} 47. g4 {[%clk 0:00:17]}  Kd6 {[%clk 0:00:22]} 48. h4 {[%clk 0:00:17]}  Kc5 {[%clk 0:00:23]} 49. Kf3 {[%clk 0:00:16]}  g5 {[%clk 0:00:23]} 50. h5 {[%clk 0:00:16]}  Kb4 {[%clk 0:00:24]} 51. Kf2 {[%clk 0:00:15]}  Bb6+ {[%clk 0:00:25]} 52. Kf3 {[%clk 0:00:15]}  Kc3 {[%clk 0:00:25]} 53. Kg2 {[%clk 0:00:14]}  f5 {[%clk 0:00:26]} 54. gxf5 {[%clk 0:00:14]}  Rxf5 {[%clk 0:00:27]} 55. Kg3 {[%clk 0:00:15]}  Re5 {[%clk 0:00:27]} 56. Kg4 {[%clk 0:00:16]}  Kd4 {[%clk 0:00:27]} 57. Kf3 {[%clk 0:00:16]}  Re3+ {[%clk 0:00:27]} 58. Kg4 {[%clk 0:00:17]}  Rxb3 {[%clk 0:00:27]} 59. axb3 {[%clk 0:00:18]}  a2 {[%clk 0:00:28]} 0-1


[Site "https://www.chess.com"]

[Event "Titled Tuesday Blitz July 20 2021"]
[White "Nguyen, Quoc Hy"]
[Black "Rottenwohrer Suarez, Juan"]
[WhiteFideId "12410853"]
[BlackFideId "32068182"]
[WhiteElo "1975"]
[BlackElo "2158"]
[Result "0-1"]
[Round "03"]
[TimeControl "180+1"]
[Date "2021.07.21"]
[WhiteClock "0:00:03"]
[BlackClock "0:00:01"]

1. d4 {[%clk 0:03:00]}  Nf6 {[%clk 0:02:59]} 2. c4 {[%clk 0:03:00]}  g6 {[%clk 0:03:00]} 3. Nc3 {[%clk 0:02:59]}  Bg7 {[%clk 0:03:00]} 4. e4 {[%clk 0:02:58]}  d6 {[%clk 0:03:01]} 5. Nf3 {[%clk 0:02:53]}  O-O {[%clk 0:03:01]} 6. Be2 {[%clk 0:02:53]}  e5 {[%clk 0:03:01]} 7. O-O {[%clk 0:02:53]}  Nc6 {[%clk 0:03:02]} 8. d5 {[%clk 0:02:53]}  Ne7 {[%clk 0:03:03]} 9. b4 {[%clk 0:02:54]}  Nh5 {[%clk 0:03:01]} 10. c5 {[%clk 0:02:54]}  f5 {[%clk 0:03:00]} 11. g3 {[%clk 0:02:53]}  h6 {[%clk 0:02:45]} 12. Nd2 {[%clk 0:02:41]}  Nf6 {[%clk 0:02:42]} 13. f3 {[%clk 0:02:38]}  g5 {[%clk 0:02:42]} 14. Nc4 {[%clk 0:02:34]}  fxe4 {[%clk 0:02:34]} 15. fxe4 {[%clk 0:02:30]}  Bh3 {[%clk 0:02:34]} 16. Rf2 {[%clk 0:02:29]}  Qd7 {[%clk 0:02:30]} 17. Ne3 {[%clk 0:02:11]}  a5 {[%clk 0:02:23]} 18. Ba3 {[%clk 0:02:07]}  b6 {[%clk 0:01:57]} 19. cxb6 {[%clk 0:01:33]}  cxb6 {[%clk 0:01:56]} 20. Rc1 {[%clk 0:01:30]}  Rac8 {[%clk 0:01:50]} 21. bxa5 {[%clk 0:01:24]}  bxa5 {[%clk 0:01:43]} 22. Nc4 {[%clk 0:00:52]}  Ng4 {[%clk 0:01:10]} 23. Rxf8+ {[%clk 0:00:33]}  Rxf8 {[%clk 0:01:11]} 24. Bxg4 {[%clk 0:00:26]}  Bxg4 {[%clk 0:01:12]} 25. Qd2 {[%clk 0:00:20]}  Nc8 {[%clk 0:01:03]} 26. Rf1 {[%clk 0:00:18]}  Qa7+ {[%clk 0:00:47]} 27. Qe3 {[%clk 0:00:16]}  Qa6 {[%clk 0:00:35]} 28. Rxf8+ {[%clk 0:00:12]}  Bxf8 {[%clk 0:00:36]} 29. Nd2 {[%clk 0:00:08]}  Nb6 {[%clk 0:00:32]} 30. Qf2 {[%clk 0:00:05]}  Qd3 {[%clk 0:00:22]} 31. Ncb1 {[%clk 0:00:02]}  Nc4 {[%clk 0:00:18]} 32. Bc1 {[%clk 0:00:02]}  Bh3 {[%clk 0:00:11]} 33. Nxc4 {[%clk 0:00:01]}  Qxb1 {[%clk 0:00:10]} 34. Qe1 {[%clk 0:00:02]}  Qxa2 {[%clk 0:00:09]} 35. Ne3 {[%clk 0:00:02]}  a4 {[%clk 0:00:07]} 36. Qf2 {[%clk 0:00:02]}  Qb1 {[%clk 0:00:03]} 37. Qd2 {[%clk 0:00:02]}  a3 {[%clk 0:00:03]} 38. Nd1 {[%clk 0:00:02]}  a2 {[%clk 0:00:03]} 39. Bb2 {[%clk 0:00:02]}  Bg4 {[%clk 0:00:02]} 40. Kf2 {[%clk 0:00:03]}  Qxd1 {[%clk 0:00:02]} 41. Qa5 {[%clk 0:00:03]}  Qe2+ {[%clk 0:00:01]} 0-1


[Site "https://www.chess.com"]

[Event "Titled Tuesday Blitz July 20 2021"]
[White "Noritsyn, Nikolay"]
[Black "Huynh, Ngoc Thuy Linh"]
[WhiteFideId "2604922"]
[BlackFideId "12403334"]
[WhiteElo "2527"]
[BlackElo "1780"]
[Result "0-1"]
[Round "03"]
[TimeControl "180+1"]
[Date "2021.07.21"]
[WhiteClock "0:00:01"]
[BlackClock "0:00:10"]

1. e4 {[%clk 0:03:00]}  c5 {[%clk 0:03:00]} 2. Nf3 {[%clk 0:02:59]}  d6 {[%clk 0:03:00]} 3. c3 {[%clk 0:02:57]}  Nf6 {[%clk 0:02:59]} 4. Bd3 {[%clk 0:02:56]}  g6 {[%clk 0:02:57]} 5. Bc2 {[%clk 0:02:56]}  Bg7 {[%clk 0:02:52]} 6. d4 {[%clk 0:02:56]}  O-O {[%clk 0:02:46]} 7. h3 {[%clk 0:02:55]}  cxd4 {[%clk 0:02:32]} 8. cxd4 {[%clk 0:02:53]}  e5 {[%clk 0:02:32]} 9. d5 {[%clk 0:02:48]}  a5 {[%clk 0:02:27]} 10. Nc3 {[%clk 0:02:45]}  Na6 {[%clk 0:02:27]} 11. Be3 {[%clk 0:02:38]}  b6 {[%clk 0:02:27]} 12. Nd2 {[%clk 0:02:28]}  Nc5 {[%clk 0:02:25]} 13. Bxc5 {[%clk 0:02:22]}  bxc5 {[%clk 0:02:23]} 14. a4 {[%clk 0:02:19]}  Ba6 {[%clk 0:02:24]} 15. Nb5 {[%clk 0:02:18]}  Rb8 {[%clk 0:02:19]} 16. Bd3 {[%clk 0:02:17]}  Ne8 {[%clk 0:02:16]} 17. Qc2 {[%clk 0:02:05]}  Nc7 {[%clk 0:01:50]} 18. Nxc7 {[%clk 0:01:59]}  Bxd3 {[%clk 0:01:49]} 19. Qxd3 {[%clk 0:01:59]}  Qxc7 {[%clk 0:01:49]} 20. Nc4 {[%clk 0:01:55]}  Rb4 {[%clk 0:01:49]} 21. O-O {[%clk 0:01:52]}  f5 {[%clk 0:01:48]} 22. Rfe1 {[%clk 0:01:41]}  Rfb8 {[%clk 0:01:35]} 23. exf5 {[%clk 0:01:32]}  gxf5 {[%clk 0:01:33]} 24. f3 {[%clk 0:01:19]}  Rf8 {[%clk 0:01:06]} 25. Ra3 {[%clk 0:00:55]}  Kh8 {[%clk 0:01:05]} 26. Kh1 {[%clk 0:00:54]}  Bh6 {[%clk 0:01:04]} 27. b3 {[%clk 0:00:52]}  Bf4 {[%clk 0:00:59]} 28. Ra2 {[%clk 0:00:52]}  Qe7 {[%clk 0:00:50]} 29. Rae2 {[%clk 0:00:41]}  Qf6 {[%clk 0:00:41]} 30. g4 {[%clk 0:00:35]}  Qh4 {[%clk 0:00:40]} 31. Kg1 {[%clk 0:00:23]}  Qg3+ {[%clk 0:00:39]} 32. Kf1 {[%clk 0:00:22]}  Qxh3+ {[%clk 0:00:39]} 33. Rg2 {[%clk 0:00:22]}  fxg4 {[%clk 0:00:36]} 34. Kf2 {[%clk 0:00:14]}  Bh2 {[%clk 0:00:24]} 35. Re3 {[%clk 0:00:11]}  gxf3 {[%clk 0:00:17]} 36. Rxf3 {[%clk 0:00:09]}  Rxf3+ {[%clk 0:00:17]} 37. Qxf3 {[%clk 0:00:10]}  Qxf3+ {[%clk 0:00:16]} 38. Kxf3 {[%clk 0:00:10]}  Rxb3+ {[%clk 0:00:17]} 39. Kg4 {[%clk 0:00:09]}  Bf4 {[%clk 0:00:14]} 40. Kf5 {[%clk 0:00:08]}  Rd3 {[%clk 0:00:12]} 41. Nxd6 {[%clk 0:00:05]}  h5 {[%clk 0:00:12]} 42. Kg6 {[%clk 0:00:02]}  Rg3+ {[%clk 0:00:09]} 43. Rxg3 {[%clk 0:00:01]}  Bxg3 {[%clk 0:00:10]} 0-1


[Site "https://www.chess.com"]